[Event "Live Chess"]
[Site "Chess.com"]
[Date "2023.05.21"]
[Round "-"]
[White "MarkCheck"]
[Black "Trendle"]
[Result "0-1"]
[WhiteElo "1749"]
[BlackElo "2659"]
[TimeControl "300"]
[EndTime "7:26:45 PDT"]
[Termination "Trendle won on time"]

1. c4 {[%clk 0:04:57.7]} 1... f5 {[%clk 0:04:59.2]} 2. g3 {[%clk 0:04:57.3]}
2... Nf6 {[%clk 0:04:58.1]} 3. Bg2 {[%clk 0:04:56]} 3... g6 {[%clk 0:04:57.6]}
4. Nc3 {[%clk 0:04:50.3]} 4... Bg7 {[%clk 0:04:56.3]} 5. d3 {[%clk 0:04:48.9]}
5... d6 {[%clk 0:04:55.6]} 6. e4 {[%clk 0:04:47.3]} 6... Nc6 {[%clk 0:04:54.6]}
7. Nge2 {[%clk 0:04:40.9]} 7... O-O {[%clk 0:04:54.1]} 8. O-O {[%clk 0:04:37]}
8... e5 {[%clk 0:04:53.7]} 9. f4 {[%clk 0:04:30]} 9... exf4 {[%clk 0:04:44.8]}
10. Nxf4 {[%clk 0:04:25.8]} 10... fxe4 {[%clk 0:04:41.6]} 11. dxe4 {[%clk
0:04:06]} 11... Ne5 {[%clk 0:04:37.9]} 12. Nfd5 {[%clk 0:03:22]} 12... c6 {[%clk
0:04:12]} 13. Nxf6+ {[%clk 0:03:18.9]} 13... Rxf6 {[%clk 0:04:09.1]} 14. Rxf6
{[%clk 0:03:10.5]} 14... Qxf6 {[%clk 0:04:07.1]} 15. Qe2 {[%clk 0:03:02.9]}
15... Be6 {[%clk 0:04:05.3]} 16. Bf4 {[%clk 0:02:47.3]} 16... Nxc4 {[%clk
0:03:54.7]} 17. Rf1 {[%clk 0:02:34.5]} 17... Qd4+ {[%clk 0:03:50]} 18. Kh1
{[%clk 0:02:34]} 18... Rf8 {[%clk 0:03:44.1]} 19. Rd1 {[%clk 0:02:08.8]} 19...
Qc5 {[%clk 0:03:35.5]} 20. Qd3 {[%clk 0:01:31.6]} 20... Nxb2 {[%clk 0:03:21.3]}
21. Qxd6 {[%clk 0:01:28.1]} 21... Qxd6 {[%clk 0:03:19.9]} 22. Rxd6 {[%clk
0:01:26.3]} 22... Bc4 {[%clk 0:03:10.8]} 23. Nd1 {[%clk 0:01:11.1]} 23... Nxd1
{[%clk 0:03:03.8]} 24. Rxd1 {[%clk 0:01:09.7]} 24... Bxa2 {[%clk 0:03:03.6]} 25.
e5 {[%clk 0:01:04.8]} 25... Be6 {[%clk 0:02:58.1]} 26. Rb1 {[%clk 0:01:01.5]}
26... Rf7 {[%clk 0:02:53.8]} 27. h4 {[%clk 0:00:52.9]} 27... Bf8 {[%clk
0:02:50.4]} 28. Kh2 {[%clk 0:00:43.4]} 28... a5 {[%clk 0:02:49.5]} 29. Ra1
{[%clk 0:00:31.7]} 29... Bb4 {[%clk 0:02:48.7]} 30. Bh3 {[%clk 0:00:23.3]} 30...
Bxh3 {[%clk 0:02:44.2]} 31. Kxh3 {[%clk 0:00:23.2]} 31... Re7 {[%clk 0:02:40.7]}
32. Rd1 {[%clk 0:00:17.3]} 32... Kf7 {[%clk 0:02:39.7]} 33. Kg4 {[%clk
0:00:12.2]} 33... Ke6 {[%clk 0:02:36.5]} 34. h5 {[%clk 0:00:04.4]} 34... gxh5+
{[%clk 0:02:35.1]} 35. Kxh5 {[%clk 0:00:03.7]} 35... a4 {[%clk 0:02:35]} 0-1

[Event "Live Chess"]
[Site "Chess.com"]
[Date "2023.05.21"]
[Round "-"]
[White "ClassyChameleon"]
[Black "AlanPaling"]
[Result "0-1"]
[WhiteElo "1080"]
[BlackElo "1377"]
[TimeControl "300"]
[EndTime "7:26:47 PDT"]
[Termination "AlanPaling won by checkmate"]

1. e4 {[%clk 0:04:59.4]} 1... Nf6 {[%clk 0:04:57.7]} 2. Nc3 {[%clk 0:04:56.5]}
2... d5 {[%clk 0:04:56.5]} 3. f3 {[%clk 0:04:49.5]} 3... dxe4 {[%clk 0:04:55]}
4. fxe4 {[%clk 0:04:48.7]} 4... e5 {[%clk 0:04:54.2]} 5. Nf3 {[%clk 0:04:45.1]}
5... Nbd7 {[%clk 0:04:52.4]} 6. d4 {[%clk 0:04:42.8]} 6... exd4 {[%clk
0:04:45.5]} 7. Nxd4 {[%clk 0:04:41.8]} 7... Ne5 {[%clk 0:04:41.4]} 8. Be3 {[%clk
0:04:35.2]} 8... c6 {[%clk 0:04:38.9]} 9. Qe2 {[%clk 0:04:28.4]} 9... Bd6 {[%clk
0:04:36]} 10. O-O-O {[%clk 0:04:26]} 10... Qc7 {[%clk 0:04:33.9]} 11. Nf5 {[%clk
0:04:04.9]} 11... Bf8 {[%clk 0:04:26.7]} 12. Ng3 {[%clk 0:03:50.9]} 12... h6
{[%clk 0:04:23.9]} 13. h4 {[%clk 0:03:48.2]} 13... Bg4 {[%clk 0:04:19.5]} 14.
Qd2 {[%clk 0:03:33.9]} 14... Bxd1 {[%clk 0:04:16.1]} 15. Qxd1 {[%clk 0:03:33.4]}
15... Rd8 {[%clk 0:04:14.9]} 16. Bd3 {[%clk 0:03:31.2]} 16... b6 {[%clk
0:04:08.2]} 17. Nf5 {[%clk 0:03:29.7]} 17... g6 {[%clk 0:04:02.6]} 18. Nd4
{[%clk 0:03:27.6]} 18... Nxd3+ {[%clk 0:03:55.5]} 19. Qxd3 {[%clk 0:03:25]}
19... Be7 {[%clk 0:03:42.7]} 20. Rd1 {[%clk 0:03:16.7]} 20... h5 {[%clk
0:03:35.6]} 21. g3 {[%clk 0:03:15]} 21... Qb7 {[%clk 0:03:19.6]} 22. e5 {[%clk
0:03:02.8]} 22... Nd5 {[%clk 0:03:14]} 23. Nxd5 {[%clk 0:02:59.2]} 23... Rxd5
{[%clk 0:03:12.7]} 24. Bf4 {[%clk 0:02:55.3]} 24... c5 {[%clk 0:03:09.5]} 25.
Qb5+ {[%clk 0:02:51.4]} 25... Qd7 {[%clk 0:03:02.7]} 26. Nc6 {[%clk 0:02:46]}
26... Rxd1# {[%clk 0:03:00.4]} 0-1

[Event "Live Chess"]
[Site "Chess.com"]
[Date "2023.05.21"]
[Round "-"]
[White "ameetghasi100"]
[Black "f4nomore"]
[Result "1-0"]
[WhiteElo "2586"]
[BlackElo "1389"]
[TimeControl "300"]
[EndTime "7:26:54 PDT"]
[Termination "ameetghasi100 won by checkmate"]

1. d4 {[%clk 0:04:58.5]} 1... g6 {[%clk 0:04:59.9]} 2. h4 {[%clk 0:04:54.1]}
2... Bg7 {[%clk 0:04:59.8]} 3. h5 {[%clk 0:04:51.7]} 3... d6 {[%clk 0:04:55.7]}
4. e4 {[%clk 0:04:49.3]} 4... Nf6 {[%clk 0:04:50.9]} 5. h6 {[%clk 0:04:45.4]}
5... Bf8 {[%clk 0:04:44.2]} 6. f3 {[%clk 0:04:44]} 6... Nbd7 {[%clk 0:04:39.7]}
7. Nc3 {[%clk 0:04:38.3]} 7... c5 {[%clk 0:04:38.1]} 8. d5 {[%clk 0:04:36.9]}
8... Ne5 {[%clk 0:04:35.8]} 9. Bg5 {[%clk 0:04:33.8]} 9... Qb6 {[%clk
0:04:20.4]} 10. Qd2 {[%clk 0:04:29.1]} 10... Qxb2 {[%clk 0:04:14.2]} 11. Rb1
{[%clk 0:04:26]} 11... Qa3 {[%clk 0:04:12]} 12. Nb5 {[%clk 0:04:25]} 12... Qa5
{[%clk 0:03:55.9]} 13. Qxa5 {[%clk 0:04:23.6]} 13... b6 {[%clk 0:03:54]} 14. Qa4
{[%clk 0:04:09.3]} 14... Bd7 {[%clk 0:03:49.5]} 15. Qa6 {[%clk 0:04:07.3]} 15...
Bxb5 {[%clk 0:03:42.4]} 16. Bxb5+ {[%clk 0:04:05]} 16... Nfd7 {[%clk 0:03:39.4]}
17. Qb7 {[%clk 0:04:04.9]} 17... Rb8 {[%clk 0:03:34.7]} 18. Qxb8# {[%clk
0:04:02.9]} 1-0

[Event "Live Chess"]
[Site "Chess.com"]
[Date "2023.05.21"]
[Round "-"]
[White "zdanevych"]
[Black "WelshTiger"]
[Result "0-1"]
[WhiteElo "1491"]
[BlackElo "2334"]
[TimeControl "300"]
[EndTime "7:26:59 PDT"]
[Termination "WelshTiger won by resignation"]

1. d4 {[%clk 0:04:58.7]} 1... d5 {[%clk 0:04:52.2]} 2. c4 {[%clk 0:04:58.1]}
2... e6 {[%clk 0:04:51.2]} 3. Nc3 {[%clk 0:04:57]} 3... c5 {[%clk 0:04:50.4]} 4.
Nf3 {[%clk 0:04:54.3]} 4... Nc6 {[%clk 0:04:49.4]} 5. cxd5 {[%clk 0:04:53.2]}
5... exd5 {[%clk 0:04:49.3]} 6. e3 {[%clk 0:04:49.5]} 6... Nf6 {[%clk
0:04:48.1]} 7. Bd3 {[%clk 0:04:47.6]} 7... c4 {[%clk 0:04:45.5]} 8. Bc2 {[%clk
0:04:46.2]} 8... a6 {[%clk 0:04:45]} 9. h3 {[%clk 0:04:45.5]} 9... b5 {[%clk
0:04:43.9]} 10. a3 {[%clk 0:04:43.7]} 10... Be7 {[%clk 0:04:34.8]} 11. O-O
{[%clk 0:04:42.9]} 11... O-O {[%clk 0:04:33.5]} 12. b3 {[%clk 0:04:42.4]} 12...
Be6 {[%clk 0:04:18.4]} 13. bxc4 {[%clk 0:04:37.8]} 13... bxc4 {[%clk 0:04:17.8]}
14. Bb2 {[%clk 0:04:26.4]} 14... Rb8 {[%clk 0:04:15.6]} 15. Rb1 {[%clk
0:04:24.6]} 15... Qa5 {[%clk 0:04:14.8]} 16. e4 {[%clk 0:04:05.8]} 16... Rxb2
{[%clk 0:04:09.2]} 17. Rxb2 {[%clk 0:03:58.1]} 17... Qxc3 {[%clk 0:04:08.3]} 18.
Rb7 {[%clk 0:03:53.8]} 18... dxe4 {[%clk 0:04:05.8]} 19. Ne5 {[%clk 0:03:35.5]}
19... Nxd4 {[%clk 0:04:00.8]} 20. Ba4 {[%clk 0:03:25.4]} 20... Bd6 {[%clk
0:03:50.7]} 21. Ng4 {[%clk 0:02:59.6]} 21... Nxg4 {[%clk 0:03:42.7]} 22. hxg4
{[%clk 0:02:59.5]} 22... e3 {[%clk 0:03:39.6]} 23. fxe3 {[%clk 0:02:52.8]} 23...
Qxe3+ {[%clk 0:03:38.6]} 24. Kh1 {[%clk 0:02:51.5]} 24... Qh6+ {[%clk
0:03:24.2]} 25. Kg1 {[%clk 0:02:48.5]} 25... Qh2+ {[%clk 0:03:22.3]} 26. Kf2
{[%clk 0:02:47]} 26... Qg3+ {[%clk 0:03:21.9]} 27. Kg1 {[%clk 0:02:43.2]} 27...
Bc5 {[%clk 0:03:08.9]} 0-1

[Event "Live Chess"]
[Site "Chess.com"]
[Date "2023.05.21"]
[Round "-"]
[White "JoeRoot66"]
[Black "AMCWAML"]
[Result "0-1"]
[WhiteElo "1901"]
[BlackElo "2260"]
[TimeControl "300"]
[EndTime "7:27:08 PDT"]
[Termination "AMCWAML won by resignation"]

1. e4 {[%clk 0:04:59.6]} 1... c5 {[%clk 0:04:59.1]} 2. c3 {[%clk 0:04:58.7]}
2... Nf6 {[%clk 0:04:56.8]} 3. e5 {[%clk 0:04:57.7]} 3... Nd5 {[%clk 0:04:56.2]}
4. d4 {[%clk 0:04:56.4]} 4... cxd4 {[%clk 0:04:53.5]} 5. Nf3 {[%clk 0:04:56.3]}
5... Nc6 {[%clk 0:04:51.4]} 6. cxd4 {[%clk 0:04:55.4]} 6... d6 {[%clk
0:04:50.9]} 7. Bc4 {[%clk 0:04:54.9]} 7... dxe5 {[%clk 0:04:49.8]} 8. dxe5
{[%clk 0:04:53.7]} 8... Ndb4 {[%clk 0:04:42.6]} 9. Qb3 {[%clk 0:04:48]} 9... e6
{[%clk 0:04:38.1]} 10. a3 {[%clk 0:04:45.1]} 10... Na5 {[%clk 0:04:23.4]} 11.
Qa4+ {[%clk 0:04:37.9]} 11... Bd7 {[%clk 0:04:21.4]} 12. Bb5 {[%clk 0:04:32.9]}
12... Nd3+ {[%clk 0:03:55]} 13. Kd2 {[%clk 0:04:15.1]} 13... Nxc1 {[%clk
0:03:48.8]} 14. Bxd7+ {[%clk 0:04:09.5]} 14... Qxd7+ {[%clk 0:03:46.3]} 15.
Qxd7+ {[%clk 0:04:09.4]} 15... Kxd7 {[%clk 0:03:45.5]} 16. Rxc1 {[%clk
0:04:09.3]} 16... Nb3+ {[%clk 0:03:44.5]} 0-1

[Event "Live Chess"]
[Site "Chess.com"]
[Date "2023.05.21"]
[Round "-"]
[White "whatnot126"]
[Black "seabuck"]
[Result "0-1"]
[WhiteElo "2057"]
[BlackElo "1891"]
[TimeControl "300"]
[EndTime "7:27:15 PDT"]
[Termination "seabuck won by checkmate"]

1. e4 {[%clk 0:04:59.1]} 1... e6 {[%clk 0:04:57.9]} 2. d4 {[%clk 0:04:57.9]}
2... d5 {[%clk 0:04:57.2]} 3. e5 {[%clk 0:04:56.8]} 3... c5 {[%clk 0:04:55.7]}
4. c3 {[%clk 0:04:56.5]} 4... Nc6 {[%clk 0:04:54.4]} 5. Nf3 {[%clk 0:04:56.1]}
5... Bd7 {[%clk 0:04:52.7]} 6. Bd3 {[%clk 0:04:54.8]} 6... Rc8 {[%clk
0:04:49.5]} 7. O-O {[%clk 0:04:52.8]} 7... cxd4 {[%clk 0:04:45.6]} 8. cxd4
{[%clk 0:04:52.7]} 8... Nb4 {[%clk 0:04:42.5]} 9. Nc3 {[%clk 0:04:52.3]} 9...
Nxd3 {[%clk 0:04:37.1]} 10. Qxd3 {[%clk 0:04:52.2]} 10... Ne7 {[%clk 0:04:21.3]}
11. h4 {[%clk 0:04:45.5]} 11... Nf5 {[%clk 0:04:15.6]} 12. Bg5 {[%clk
0:04:40.6]} 12... Be7 {[%clk 0:04:09.8]} 13. Bxe7 {[%clk 0:04:39.4]} 13... Qxe7
{[%clk 0:04:08.2]} 14. h5 {[%clk 0:04:34.3]} 14... O-O {[%clk 0:03:51.5]} 15. g4
{[%clk 0:04:12.5]} 15... Nh6 {[%clk 0:03:43.1]} 16. Nh2 {[%clk 0:04:04.6]} 16...
f5 {[%clk 0:03:23.8]} 17. exf6 {[%clk 0:03:34.6]} 17... Qxf6 {[%clk 0:03:18]}
18. f4 {[%clk 0:03:28.3]} 18... Qh4 {[%clk 0:03:07.8]} 19. Qf3 {[%clk
0:02:58.5]} 19... a6 {[%clk 0:02:49]} 20. Rae1 {[%clk 0:02:54.8]} 20... Rf7
{[%clk 0:02:35.8]} 21. Re5 {[%clk 0:02:46.3]} 21... Rcf8 {[%clk 0:02:27.5]} 22.
Ne2 {[%clk 0:02:45]} 22... Bb5 {[%clk 0:02:12.4]} 23. Rxe6 {[%clk 0:02:23.2]}
23... Rxf4 {[%clk 0:01:49.1]} 24. Nxf4 {[%clk 0:02:13.2]} 24... Bxf1 {[%clk
0:01:42.6]} 25. Nxf1 {[%clk 0:02:04.2]} 25... Nxg4 {[%clk 0:01:31.7]} 26. Qxd5
{[%clk 0:01:57.1]} 26... Qf2+ {[%clk 0:01:18.4]} 27. Kh1 {[%clk 0:01:47]} 27...
Qxf1# {[%clk 0:01:16.5]} 0-1

[Event "Live Chess"]
[Site "Chess.com"]
[Date "2023.05.21"]
[Round "-"]
[White "AbilifyXL"]
[Black "LL220284LL"]
[Result "1-0"]
[WhiteElo "1988"]
[BlackElo "2236"]
[TimeControl "300"]
[EndTime "7:27:15 PDT"]
[Termination "AbilifyXL won by resignation"]

1. d4 {[%clk 0:04:57.6]} 1... f5 {[%clk 0:04:56.1]} 2. c4 {[%clk 0:04:55.3]}
2... Nf6 {[%clk 0:04:54.3]} 3. Nc3 {[%clk 0:04:54.5]} 3... e6 {[%clk 0:04:52.3]}
4. Nf3 {[%clk 0:04:53.6]} 4... d6 {[%clk 0:04:49.9]} 5. g3 {[%clk 0:04:52.2]}
5... Be7 {[%clk 0:04:48.5]} 6. Bg2 {[%clk 0:04:51.5]} 6... O-O {[%clk
0:04:47.9]} 7. O-O {[%clk 0:04:50.8]} 7... Nbd7 {[%clk 0:04:47.3]} 8. Qc2 {[%clk
0:04:44.1]} 8... Rb8 {[%clk 0:04:39.6]} 9. Ng5 {[%clk 0:04:34.6]} 9... Nb6
{[%clk 0:04:35.3]} 10. b3 {[%clk 0:04:30.2]} 10... h6 {[%clk 0:04:33.9]} 11. Nf3
{[%clk 0:04:26]} 11... Qe8 {[%clk 0:04:31.5]} 12. Bb2 {[%clk 0:04:24.6]} 12...
Qh5 {[%clk 0:04:26.8]} 13. Nb5 {[%clk 0:04:16.8]} 13... Bd8 {[%clk 0:04:23.1]}
14. Nxa7 {[%clk 0:04:14.8]} 14... Bd7 {[%clk 0:04:21]} 15. a4 {[%clk 0:04:03.7]}
15... c6 {[%clk 0:04:17.3]} 16. a5 {[%clk 0:03:56.4]} 16... Na8 {[%clk
0:04:16.6]} 17. b4 {[%clk 0:03:35.8]} 17... Ne4 {[%clk 0:04:14.1]} 18. b5 {[%clk
0:03:27.1]} 18... d5 {[%clk 0:04:03.6]} 19. b6 {[%clk 0:03:17]} 19... f4 {[%clk
0:04:01]} 20. Ne5 {[%clk 0:03:12.4]} 20... Be8 {[%clk 0:03:55.7]} 21. Bxe4
{[%clk 0:02:51]} 21... dxe4 {[%clk 0:03:55]} 22. Qxe4 {[%clk 0:02:50.9]} 22...
fxg3 {[%clk 0:03:46.8]} 23. hxg3 {[%clk 0:02:49.1]} 23... Bf6 {[%clk 0:03:40.4]}
24. Kg2 {[%clk 0:02:36.2]} 24... Bxe5 {[%clk 0:03:32.7]} 25. Qxe5 {[%clk
0:02:35.1]} 25... Qxe5 {[%clk 0:03:30.9]} 26. dxe5 {[%clk 0:02:34.2]} 26... Bg6
{[%clk 0:03:30.4]} 27. f3 {[%clk 0:02:29.1]} 27... Rbd8 {[%clk 0:03:28.1]} 28.
Rad1 {[%clk 0:02:26.8]} 28... Bc2 {[%clk 0:03:27.1]} 29. Rc1 {[%clk 0:02:17.3]}
29... Bb3 {[%clk 0:03:24]} 30. Rc3 {[%clk 0:02:14]} 30... Ba4 {[%clk 0:03:21.3]}
31. Ba3 {[%clk 0:02:13]} 31... Rf7 {[%clk 0:03:18.4]} 32. Bd6 {[%clk 0:02:11.7]}
32... c5 {[%clk 0:03:13.7]} 33. Bxc5 {[%clk 0:02:04.1]} 33... Rd2 {[%clk
0:03:12.6]} 34. Rf2 {[%clk 0:02:03.1]} 34... Rfd7 {[%clk 0:03:10.3]} 35. Bd6
{[%clk 0:02:02]} 35... Ra2 {[%clk 0:03:07.4]} 36. e4 {[%clk 0:01:55.5]} 36...
Bc6 {[%clk 0:03:06]} 37. Rxa2 {[%clk 0:01:54]} 1-0

[Event "Live Chess"]
[Site "Chess.com"]
[Date "2023.05.21"]
[Round "-"]
[White "Bob2pen"]
[Black "Conradical12"]
[Result "1-0"]
[WhiteElo "1852"]
[BlackElo "1536"]
[TimeControl "300"]
[EndTime "7:27:33 PDT"]
[Termination "Bob2pen won by resignation"]

1. c4 {[%clk 0:04:57.4]} 1... e5 {[%clk 0:04:58.6]} 2. g3 {[%clk 0:04:56.6]}
2... Nc6 {[%clk 0:04:58.1]} 3. Bg2 {[%clk 0:04:55.9]} 3... Bc5 {[%clk
0:04:57.5]} 4. e3 {[%clk 0:04:54.5]} 4... Nf6 {[%clk 0:04:56.1]} 5. Nc3 {[%clk
0:04:52.2]} 5... O-O {[%clk 0:04:55.5]} 6. Nge2 {[%clk 0:04:51.4]} 6... d6
{[%clk 0:04:53.4]} 7. O-O {[%clk 0:04:50.4]} 7... Be6 {[%clk 0:04:52.7]} 8. d4
{[%clk 0:04:47.9]} 8... exd4 {[%clk 0:04:51]} 9. exd4 {[%clk 0:04:46.7]} 9...
Bb4 {[%clk 0:04:49.6]} 10. d5 {[%clk 0:04:45.6]} 10... Bxc3 {[%clk 0:04:48.8]}
11. Nxc3 {[%clk 0:04:43.8]} 11... Bxd5 {[%clk 0:04:46.4]} 12. Nxd5 {[%clk
0:04:41.2]} 12... Nxd5 {[%clk 0:04:44.9]} 13. Qxd5 {[%clk 0:04:36.2]} 13... Ne5
{[%clk 0:04:43.6]} 14. Qxb7 {[%clk 0:04:32.5]} 14... Rb8 {[%clk 0:04:41.5]} 15.
Qd5 {[%clk 0:04:28.3]} 15... c6 {[%clk 0:04:39.7]} 16. Qd1 {[%clk 0:04:14.3]}
16... Qf6 {[%clk 0:04:35.1]} 17. Rb1 {[%clk 0:04:09.2]} 17... Nxc4 {[%clk
0:04:31.7]} 18. b3 {[%clk 0:04:02.2]} 18... Rfe8 {[%clk 0:04:18.7]} 19. Bf4
{[%clk 0:03:58.1]} 19... g5 {[%clk 0:04:12.1]} 20. Qg4 {[%clk 0:03:41.9]} 20...
h6 {[%clk 0:04:00.4]} 21. bxc4 {[%clk 0:03:39.6]} 21... Rxb1 {[%clk 0:03:57.7]}
22. Rxb1 {[%clk 0:03:38]} 22... Kh7 {[%clk 0:03:50.8]} 23. Be3 {[%clk
0:03:30.8]} 23... Qg6 {[%clk 0:03:47]} 24. Rb7 {[%clk 0:03:21.4]} 24... d5
{[%clk 0:03:35.9]} 25. Qf3 {[%clk 0:03:14.5]} 25... dxc4 {[%clk 0:03:32.8]} 26.
Rxf7+ {[%clk 0:03:08.1]} 26... Kg8 {[%clk 0:03:28.9]} 27. Qf5 {[%clk 0:02:50.2]}
27... Qxf5 {[%clk 0:03:27]} 28. Rxf5 {[%clk 0:02:49.1]} 28... c3 {[%clk
0:03:26.6]} 29. Rc5 {[%clk 0:02:47.8]} 1-0

[Event "Live Chess"]
[Site "Chess.com"]
[Date "2023.05.21"]
[Round "-"]
[White "ms_lilley"]
[Black "elizaveta_frundina"]
[Result "0-1"]
[WhiteElo "603"]
[BlackElo "1580"]
[TimeControl "300"]
[EndTime "7:27:36 PDT"]
[Termination "elizaveta_frundina won by checkmate"]

1. d4 {[%clk 0:04:57.7]} 1... d5 {[%clk 0:04:58.2]} 2. e3 {[%clk 0:04:56.3]}
2... Nf6 {[%clk 0:04:56.3]} 3. h3 {[%clk 0:04:54.9]} 3... e6 {[%clk 0:04:54.6]}
4. Nf3 {[%clk 0:04:53.8]} 4... Bd6 {[%clk 0:04:53.3]} 5. c4 {[%clk 0:04:50.8]}
5... c5 {[%clk 0:04:50.2]} 6. dxc5 {[%clk 0:04:48.8]} 6... Bxc5 {[%clk
0:04:49.2]} 7. cxd5 {[%clk 0:04:47.3]} 7... Nxd5 {[%clk 0:04:46.2]} 8. Nc3
{[%clk 0:04:43.6]} 8... O-O {[%clk 0:04:41.5]} 9. Nxd5 {[%clk 0:04:41.3]} 9...
exd5 {[%clk 0:04:38.6]} 10. a3 {[%clk 0:04:36]} 10... Nc6 {[%clk 0:04:36.3]} 11.
b4 {[%clk 0:04:34.4]} 11... Bb6 {[%clk 0:04:31.2]} 12. Bb2 {[%clk 0:04:30.3]}
12... f6 {[%clk 0:04:28.7]} 13. Bb5 {[%clk 0:04:15.8]} 13... Re8 {[%clk
0:04:26.5]} 14. O-O {[%clk 0:04:13.6]} 14... a6 {[%clk 0:04:23]} 15. Nd4 {[%clk
0:04:08]} 15... Bxd4 {[%clk 0:04:09.7]} 16. Bxc6 {[%clk 0:03:48.9]} 16... Bxb2
{[%clk 0:04:01.8]} 17. Ra2 {[%clk 0:03:41.7]} 17... bxc6 {[%clk 0:03:53.8]} 18.
Rxb2 {[%clk 0:03:39.7]} 18... Qe7 {[%clk 0:03:44.2]} 19. Qc2 {[%clk 0:03:30.8]}
19... Bd7 {[%clk 0:03:34]} 20. a4 {[%clk 0:03:22.6]} 20... Qf7 {[%clk
0:03:23.2]} 21. Qc5 {[%clk 0:03:10.9]} 21... Qg6 {[%clk 0:03:19.2]} 22. Qd6
{[%clk 0:02:58.1]} 22... Bxh3 {[%clk 0:03:13.6]} 23. g3 {[%clk 0:02:52.3]} 23...
Qf5 {[%clk 0:03:02.7]} 24. Re1 {[%clk 0:02:26.1]} 24... Qf3 {[%clk 0:03:00.3]}
25. Qf4 {[%clk 0:01:19.1]} 25... Qg2# {[%clk 0:02:58.9]} 0-1

[Event "Live Chess"]
[Site "Chess.com"]
[Date "2023.05.21"]
[Round "-"]
[White "gmnorfolk"]
[Black "lord_cll"]
[Result "1-0"]
[WhiteElo "2129"]
[BlackElo "1208"]
[TimeControl "300"]
[EndTime "7:27:58 PDT"]
[Termination "gmnorfolk won by resignation"]

1. d4 {[%clk 0:04:58.3]} 1... Nf6 {[%clk 0:04:58.5]} 2. c4 {[%clk 0:04:57]} 2...
g6 {[%clk 0:04:57.7]} 3. Nc3 {[%clk 0:04:56.6]} 3... Bg7 {[%clk 0:04:56.6]} 4.
e4 {[%clk 0:04:55.2]} 4... d6 {[%clk 0:04:54.4]} 5. Be2 {[%clk 0:04:55.1]} 5...
O-O {[%clk 0:04:53]} 6. Be3 {[%clk 0:04:54.5]} 6... e5 {[%clk 0:04:48.3]} 7. d5
{[%clk 0:04:52.2]} 7... a5 {[%clk 0:04:45.5]} 8. h4 {[%clk 0:04:51.2]} 8... Na6
{[%clk 0:04:42.4]} 9. h5 {[%clk 0:04:48]} 9... Bd7 {[%clk 0:04:32]} 10. h6
{[%clk 0:04:34.3]} 10... Bh8 {[%clk 0:04:29.9]} 11. Qd2 {[%clk 0:04:32.6]} 11...
Rb8 {[%clk 0:04:17.5]} 12. O-O-O {[%clk 0:04:29.1]} 12... c6 {[%clk 0:04:14.3]}
13. dxc6 {[%clk 0:04:27.2]} 13... Bxc6 {[%clk 0:04:10.6]} 14. f3 {[%clk
0:04:24.5]} 14... Qc7 {[%clk 0:03:36.1]} 15. Qxd6 {[%clk 0:04:20]} 15... Rfd8
{[%clk 0:02:57.6]} 16. Qxc7 {[%clk 0:04:16.3]} 16... Nxc7 {[%clk 0:02:45.9]} 17.
Rxd8+ {[%clk 0:04:14.5]} 17... Rxd8 {[%clk 0:02:44.4]} 18. Bb6 {[%clk 0:04:14]}
18... Rd7 {[%clk 0:02:39.3]} 19. Nd5 {[%clk 0:04:10.7]} 19... Ncxd5 {[%clk
0:02:34.7]} 20. exd5 {[%clk 0:04:07.1]} 20... Nxd5 {[%clk 0:02:15]} 21. cxd5
{[%clk 0:04:03.7]} 21... Rxd5 {[%clk 0:02:06.2]} 22. Bc4 {[%clk 0:03:59]} 22...
Rd7 {[%clk 0:01:55.3]} 23. Ne2 {[%clk 0:03:57.9]} 23... Kf8 {[%clk 0:01:44.4]}
24. Rd1 {[%clk 0:03:52.1]} 24... Rxd1+ {[%clk 0:01:26.3]} 25. Kxd1 {[%clk
0:03:50.2]} 25... e4 {[%clk 0:01:23.1]} 26. Bc5+ {[%clk 0:03:44]} 26... Ke8
{[%clk 0:01:19.7]} 27. Nd4 {[%clk 0:03:41.1]} 27... exf3 {[%clk 0:01:15.8]} 28.
Nxc6 {[%clk 0:03:35.9]} 28... bxc6 {[%clk 0:01:14.3]} 29. gxf3 {[%clk
0:03:31.8]} 29... Kd7 {[%clk 0:01:11.2]} 30. Bxf7 {[%clk 0:03:29.5]} 30... Be5
{[%clk 0:01:08.4]} 31. Bg8 {[%clk 0:03:21.8]} 31... Bxb2 {[%clk 0:01:01.3]} 32.
Bxh7 {[%clk 0:03:19.9]} 32... a4 {[%clk 0:00:56.3]} 33. Bxg6 {[%clk 0:03:18.3]}
33... Ke6 {[%clk 0:00:50.6]} 34. h7 {[%clk 0:03:09.8]} 34... a3 {[%clk
0:00:44.5]} 35. Be4 {[%clk 0:03:08.2]} 35... Kd7 {[%clk 0:00:40.5]} 36. Kc2
{[%clk 0:03:06.3]} 36... Kc7 {[%clk 0:00:33.4]} 37. Kd3 {[%clk 0:03:03.8]} 1-0